[Event "Early-Titled-Tuesday-Blitz-November-28-2023"]
[Site "Chess.com"]
[Date "2023.11.28"]
[Round "4"]
[White "Kirill_Klukin"]
[Black "marcodobrikov"]
[Result "1-0"]
[WhiteElo "2857"]
[BlackElo "2612"]
[TimeControl "180+1"]
[EndTime "8:40:09 PST"]
[Termination "Kirill_Klukin won by resignation"]

1. d4 {[%clk 0:03:00.9]} 1... d5 {[%clk 0:02:58.3]} 2. c4 {[%clk 0:03:01]} 2...
e6 {[%clk 0:02:56]} 3. cxd5 {[%clk 0:03:00.5]} 3... exd5 {[%clk 0:02:53.8]} 4.
Nc3 {[%clk 0:03:01.4]} 4... c6 {[%clk 0:02:53.4]} 5. Nf3 {[%clk 0:02:59.9]} 5...
h6 {[%clk 0:02:49.8]} 6. Bf4 {[%clk 0:02:55.4]} 6... Nf6 {[%clk 0:02:48.2]} 7.
e3 {[%clk 0:02:55]} 7... Bd6 {[%clk 0:02:46.5]} 8. Ne5 {[%clk 0:02:54.5]} 8...
O-O {[%clk 0:02:39.3]} 9. Bd3 {[%clk 0:02:53.8]} 9... Re8 {[%clk 0:02:35.5]} 10.
O-O {[%clk 0:02:52.4]} 10... Qe7 {[%clk 0:02:24.9]} 11. Bg3 {[%clk 0:02:46.9]}
11... Bxe5 {[%clk 0:02:22.5]} 12. Bxe5 {[%clk 0:02:16.8]} 12... Nbd7 {[%clk
0:02:15.5]} 13. Bg3 {[%clk 0:01:57]} 13... Nf8 {[%clk 0:02:15.9]} 14. Rb1 {[%clk
0:01:52.5]} 14... b5 {[%clk 0:02:05.3]} 15. Qc2 {[%clk 0:01:49.4]} 15... Bd7
{[%clk 0:02:04]} 16. Rbc1 {[%clk 0:01:31.6]} 16... a5 {[%clk 0:02:01.9]} 17. Nb1
{[%clk 0:01:29.8]} 17... a4 {[%clk 0:02:01.2]} 18. Nd2 {[%clk 0:01:29.4]} 18...
Ne6 {[%clk 0:01:58.5]} 19. Nf3 {[%clk 0:01:24]} 19... Rec8 {[%clk 0:01:58.2]}
20. Ne5 {[%clk 0:01:17.4]} 20... c5 {[%clk 0:01:54.8]} 21. dxc5 {[%clk
0:01:17.6]} 21... Nxc5 {[%clk 0:01:54.4]} 22. Qe2 {[%clk 0:01:15.2]} 22... Nxd3
{[%clk 0:01:53.5]} 23. Qxd3 {[%clk 0:01:15.5]} 23... Be8 {[%clk 0:01:50]} 24.
Qd4 {[%clk 0:01:14.4]} 24... Qe6 {[%clk 0:01:48.5]} 25. h3 {[%clk 0:01:13.7]}
25... Ne4 {[%clk 0:01:48.2]} 26. Bf4 {[%clk 0:01:10.5]} 26... f6 {[%clk
0:01:25.1]} 27. Nf3 {[%clk 0:01:10.6]} 27... Rc4 {[%clk 0:01:24.8]} 28. Qd3
{[%clk 0:01:07.4]} 28... Rac8 {[%clk 0:01:23.8]} 29. Nd4 {[%clk 0:01:01]} 29...
Qd7 {[%clk 0:01:16.5]} 30. Rcd1 {[%clk 0:01:00.6]} 30... Bg6 {[%clk 0:01:16.9]}
31. Qe2 {[%clk 0:01:00.5]} 31... Kh7 {[%clk 0:01:15.1]} 32. f3 {[%clk
0:00:49.8]} 32... Nc5 {[%clk 0:01:10.2]} 33. b3 {[%clk 0:00:40.7]} 33... axb3
{[%clk 0:01:10.3]} 34. axb3 {[%clk 0:00:41.6]} 34... Rb4 {[%clk 0:01:10.8]} 35.
Qd2 {[%clk 0:00:33.3]} 35... Nd3 {[%clk 0:01:07.2]} 36. Bg3 {[%clk 0:00:26.9]}
36... Qe7 {[%clk 0:01:04.3]} 37. Ra1 {[%clk 0:00:25.4]} 37... Re8 {[%clk
0:00:56.6]} 38. Nc6 {[%clk 0:00:18.6]} 38... Qxe3+ {[%clk 0:00:55.2]} 39. Qxe3
{[%clk 0:00:18.9]} 39... Rxe3 {[%clk 0:00:55.2]} 40. Nxb4 {[%clk 0:00:19.6]}
40... Nxb4 {[%clk 0:00:54.9]} 41. Rfe1 {[%clk 0:00:19.9]} 41... d4 {[%clk
0:00:47.7]} 42. Bf2 {[%clk 0:00:17.5]} 42... Nc2 {[%clk 0:00:47.1]} 43. Bxe3
{[%clk 0:00:16.3]} 43... dxe3 {[%clk 0:00:45.5]} 44. Rac1 {[%clk 0:00:15.8]}
44... Nxe1 {[%clk 0:00:34.8]} 45. Rxe1 {[%clk 0:00:15.9]} 45... Bc2 {[%clk
0:00:35.2]} 46. Rxe3 {[%clk 0:00:16.5]} 46... Kg6 {[%clk 0:00:36.1]} 47. b4
{[%clk 0:00:16.6]} 47... Kf5 {[%clk 0:00:36.1]} 48. Kf2 {[%clk 0:00:17.2]} 48...
g5 {[%clk 0:00:36.5]} 49. Rc3 {[%clk 0:00:13.7]} 49... Ba4 {[%clk 0:00:36]} 50.
Rc5+ {[%clk 0:00:14.3]} 50... Ke6 {[%clk 0:00:36.5]} 51. Ke3 {[%clk 0:00:14.9]}
51... h5 {[%clk 0:00:36.9]} 52. g3 {[%clk 0:00:15.2]} 52... f5 {[%clk
0:00:33.5]} 53. f4 {[%clk 0:00:13.6]} 53... h4 {[%clk 0:00:31.3]} 54. gxh4
{[%clk 0:00:13.5]} 54... gxh4 {[%clk 0:00:32.2]} 55. Kd4 {[%clk 0:00:13.5]}
55... Bd1 {[%clk 0:00:29.6]} 56. Rxb5 {[%clk 0:00:12]} 56... Bg4 {[%clk
0:00:30.2]} 57. Rb6+ {[%clk 0:00:10.6]} 57... Kf7 {[%clk 0:00:30.6]} 58. Rh6
{[%clk 0:00:11.2]} 58... Bxh3 {[%clk 0:00:30.7]} 59. Rxh4 {[%clk 0:00:12]} 59...
Bf1 {[%clk 0:00:31.6]} 60. Ke5 {[%clk 0:00:12.7]} 60... Kg6 {[%clk 0:00:31.9]}
61. Rh2 {[%clk 0:00:11.5]} 61... Bb5 {[%clk 0:00:30]} 62. Rc2 {[%clk 0:00:12]}
62... Kh5 {[%clk 0:00:30.3]} 63. Rc5 {[%clk 0:00:12.6]} 63... Bd3 {[%clk
0:00:30.5]} 64. b5 {[%clk 0:00:13.3]} 64... Kg4 {[%clk 0:00:31]} 65. b6 {[%clk
0:00:13.9]} 65... Be4 {[%clk 0:00:31.8]} 66. Rc7 {[%clk 0:00:14.3]} 66... Bc6
{[%clk 0:00:31.6]} 67. Rxc6 {[%clk 0:00:14.3]} 1-0

[Event "Early-Titled-Tuesday-Blitz-November-28-2023"]
[Site "Chess.com"]
[Date "2023.11.28"]
[Round "4"]
[White "stollenmonster"]
[Black "jup1978"]
[Result "1-0"]
[WhiteElo "2881"]
[BlackElo "2528"]
[TimeControl "180+1"]
[EndTime "8:40:09 PST"]
[Termination "stollenmonster won by resignation"]

1. e4 {[%clk 0:03:00.9]} 1... e5 {[%clk 0:02:57.2]} 2. Nc3 {[%clk 0:03:00.5]}
2... Nf6 {[%clk 0:02:56.1]} 3. g3 {[%clk 0:03:01]} 3... Nc6 {[%clk 0:02:55.2]}
4. Bg2 {[%clk 0:03:01.4]} 4... Bc5 {[%clk 0:02:55.6]} 5. h3 {[%clk 0:03:01.4]}
5... d6 {[%clk 0:02:49.7]} 6. Nge2 {[%clk 0:03:01.5]} 6... Nd4 {[%clk
0:02:47.4]} 7. d3 {[%clk 0:03:01.7]} 7... Nxe2 {[%clk 0:02:46.6]} 8. Qxe2 {[%clk
0:03:02.6]} 8... Bd7 {[%clk 0:02:45.6]} 9. O-O {[%clk 0:03:02.9]} 9... Qe7
{[%clk 0:02:37.3]} 10. Be3 {[%clk 0:03:00.3]} 10... Bb6 {[%clk 0:02:31.2]} 11.
Rad1 {[%clk 0:02:59.1]} 11... c6 {[%clk 0:02:17.1]} 12. d4 {[%clk 0:02:56.4]}
12... O-O {[%clk 0:02:13.8]} 13. Rfe1 {[%clk 0:02:52.4]} 13... Rfe8 {[%clk
0:02:11.1]} 14. Qd2 {[%clk 0:02:51.7]} 14... Be6 {[%clk 0:02:07.8]} 15. Kh2
{[%clk 0:02:50.3]} 15... Rad8 {[%clk 0:02:05.9]} 16. f4 {[%clk 0:02:47.5]} 16...
exd4 {[%clk 0:01:59.1]} 17. Bxd4 {[%clk 0:02:47.3]} 17... Bxd4 {[%clk
0:01:59.3]} 18. Qxd4 {[%clk 0:02:48.2]} 18... b6 {[%clk 0:01:51.8]} 19. Qa4
{[%clk 0:02:44.9]} 19... Rc8 {[%clk 0:01:46.5]} 20. Qa3 {[%clk 0:02:35.7]} 20...
h6 {[%clk 0:01:27.9]} 21. Rxd6 {[%clk 0:02:28.4]} 21... Nd7 {[%clk 0:01:05]} 22.
e5 {[%clk 0:02:25.4]} 22... Nc5 {[%clk 0:01:02]} 23. Rd2 {[%clk 0:02:13]} 23...
Red8 {[%clk 0:00:55.9]} 24. Rf2 {[%clk 0:02:12.4]} 24... g6 {[%clk 0:00:51.1]}
25. g4 {[%clk 0:01:55.5]} 25... Rd4 {[%clk 0:00:42.9]} 26. f5 {[%clk 0:01:50.1]}
26... Bc4 {[%clk 0:00:40.2]} 27. b4 {[%clk 0:01:45.4]} 27... Qh4 {[%clk
0:00:25.4]} 28. Kg1 {[%clk 0:01:42]} 28... Rd2 {[%clk 0:00:18]} 29. Nd1 {[%clk
0:01:37.5]} 29... Rcd8 {[%clk 0:00:15.5]} 30. bxc5 {[%clk 0:01:10.4]} 30... Rxd1
{[%clk 0:00:14.7]} 31. Qe3 {[%clk 0:01:10.9]} 31... Rxe1+ {[%clk 0:00:11.7]} 32.
Qxe1 {[%clk 0:01:10.7]} 32... bxc5 {[%clk 0:00:10]} 33. e6 {[%clk 0:01:09.1]}
33... fxe6 {[%clk 0:00:09.5]} 34. fxg6 {[%clk 0:01:09.7]} 34... Qg5 {[%clk
0:00:07.8]} 35. Be4 {[%clk 0:00:31.5]} 35... Rd4 {[%clk 0:00:04.1]} 36. c3
{[%clk 0:00:21.8]} 36... Rd7 {[%clk 0:00:02.4]} 37. Kg2 {[%clk 0:00:16.8]} 37...
Re7 {[%clk 0:00:02.9]} 38. Bf3 {[%clk 0:00:16.3]} 38... Bd5 {[%clk 0:00:03.5]}
39. c4 {[%clk 0:00:15.4]} 39... Bxf3+ {[%clk 0:00:02.6]} 40. Rxf3 {[%clk
0:00:15.5]} 40... Qxg6 {[%clk 0:00:03.3]} 41. Qe5 {[%clk 0:00:15.6]} 41... Qg7
{[%clk 0:00:03.2]} 42. Qxc5 {[%clk 0:00:15.2]} 42... e5 {[%clk 0:00:03.7]} 43.
Qxc6 {[%clk 0:00:14.5]} 43... e4 {[%clk 0:00:04.1]} 44. Qd5+ {[%clk 0:00:14.9]}
44... Kh7 {[%clk 0:00:03.3]} 45. Qf5+ {[%clk 0:00:15]} 45... Qg6 {[%clk
0:00:03.3]} 46. Qxg6+ {[%clk 0:00:14.1]} 46... Kxg6 {[%clk 0:00:04.2]} 47. Rf5
{[%clk 0:00:14.6]} 47... e3 {[%clk 0:00:03.8]} 48. Rf1 {[%clk 0:00:14.7]} 48...
e2 {[%clk 0:00:04.7]} 49. Re1 {[%clk 0:00:15.1]} 49... Re4 {[%clk 0:00:05.2]}
50. Kf2 {[%clk 0:00:14.9]} 50... Rxc4 {[%clk 0:00:05.4]} 51. Rxe2 {[%clk
0:00:15.7]} 51... Rc3 {[%clk 0:00:06]} 52. Kg2 {[%clk 0:00:15.4]} 52... Ra3
{[%clk 0:00:06.3]} 53. h4 {[%clk 0:00:15.2]} 53... h5 {[%clk 0:00:06.7]} 54. g5
{[%clk 0:00:15.3]} 54... Kf5 {[%clk 0:00:07.2]} 55. Kh2 {[%clk 0:00:14.8]} 55...
Kg4 {[%clk 0:00:07.4]} 56. Rg2+ {[%clk 0:00:15.3]} 56... Kxh4 {[%clk 0:00:05.2]}
57. g6 {[%clk 0:00:16]} 57... Rh3+ {[%clk 0:00:04.9]} 58. Kg1 {[%clk 0:00:15.9]}
58... Rc3 {[%clk 0:00:05.2]} 59. g7 {[%clk 0:00:15.7]} 59... Rc1+ {[%clk
0:00:06.1]} 60. Kh2 {[%clk 0:00:16.2]} 60... Rc8 {[%clk 0:00:07]} 61. g8=Q
{[%clk 0:00:16.6]} 61... Rxg8 {[%clk 0:00:07.9]} 62. Rxg8 {[%clk 0:00:16.9]}
62... a5 {[%clk 0:00:08.8]} 63. Ra8 {[%clk 0:00:17.2]} 63... a4 {[%clk
0:00:09.7]} 64. Rxa4+ {[%clk 0:00:17.3]} 64... Kg5 {[%clk 0:00:09.7]} 65. Kh3
{[%clk 0:00:18.2]} 65... h4 {[%clk 0:00:09.8]} 66. Rc4 {[%clk 0:00:18.9]} 66...
Kh5 {[%clk 0:00:09.9]} 67. a4 {[%clk 0:00:19.8]} 67... Kg5 {[%clk 0:00:10.8]}
68. a5 {[%clk 0:00:20.3]} 68... Kh5 {[%clk 0:00:11.7]} 69. a6 {[%clk 0:00:21]}
69... Kg5 {[%clk 0:00:12.6]} 70. a7 {[%clk 0:00:21.8]} 70... Kh5 {[%clk
0:00:13.5]} 71. a8=Q {[%clk 0:00:22.1]} 1-0

[Event "Early-Titled-Tuesday-Blitz-November-28-2023"]
[Site "Chess.com"]
[Date "2023.11.28"]
[Round "4"]
[White "Cayse"]
[Black "mishanick"]
[Result "0-1"]
[WhiteElo "2855"]
[BlackElo "3061"]
[TimeControl "180+1"]
[EndTime "8:40:15 PST"]
[Termination "mishanick won on time"]

1. e4 {[%clk 0:03:00.9]} 1... c5 {[%clk 0:02:59.6]} 2. Nf3 {[%clk 0:03:01]} 2...
d6 {[%clk 0:03:00.1]} 3. Bb5+ {[%clk 0:03:01.3]} 3... Bd7 {[%clk 0:02:57.6]} 4.
Bxd7+ {[%clk 0:03:00.9]} 4... Nxd7 {[%clk 0:02:58.5]} 5. O-O {[%clk 0:02:56.6]}
5... e6 {[%clk 0:02:59.1]} 6. d4 {[%clk 0:02:55.8]} 6... cxd4 {[%clk 0:02:58.6]}
7. Nxd4 {[%clk 0:02:56.4]} 7... Ngf6 {[%clk 0:02:57.2]} 8. Re1 {[%clk
0:02:52.4]} 8... Rc8 {[%clk 0:02:56.7]} 9. b3 {[%clk 0:02:51]} 9... Be7 {[%clk
0:02:51.3]} 10. c4 {[%clk 0:02:50.9]} 10... O-O {[%clk 0:02:51.9]} 11. Nc3
{[%clk 0:02:50.2]} 11... Qa5 {[%clk 0:02:52.2]} 12. Bb2 {[%clk 0:02:44.4]} 12...
a6 {[%clk 0:02:50]} 13. Rc1 {[%clk 0:02:26.5]} 13... Rfd8 {[%clk 0:02:49.6]} 14.
f4 {[%clk 0:02:06]} 14... Qh5 {[%clk 0:02:36.6]} 15. Qxh5 {[%clk 0:02:01.4]}
15... Nxh5 {[%clk 0:02:37.5]} 16. g3 {[%clk 0:02:00.5]} 16... Nhf6 {[%clk
0:02:29.7]} 17. Kg2 {[%clk 0:02:00.1]} 17... Nc5 {[%clk 0:02:25.6]} 18. Rcd1
{[%clk 0:01:59.2]} 18... Ne8 {[%clk 0:02:13.7]} 19. Kf3 {[%clk 0:01:27.5]} 19...
g5 {[%clk 0:02:02.4]} 20. Nc2 {[%clk 0:01:25.8]} 20... Bf6 {[%clk 0:01:59.7]}
21. e5 {[%clk 0:01:21.1]} 21... dxe5 {[%clk 0:01:58.2]} 22. fxe5 {[%clk
0:01:19.3]} 22... Nd3 {[%clk 0:01:45]} 23. exf6 {[%clk 0:01:13.1]} 23... Nxb2
{[%clk 0:01:43.3]} 24. Rxd8 {[%clk 0:01:13]} 24... Rxd8 {[%clk 0:01:44.2]} 25.
Ne4 {[%clk 0:01:13.1]} 25... h6 {[%clk 0:01:43.4]} 26. Ke2 {[%clk 0:01:11.7]}
26... Rc8 {[%clk 0:00:51]} 27. Rb1 {[%clk 0:01:09]} 27... Nxc4 {[%clk
0:00:50.7]} 28. bxc4 {[%clk 0:01:09.1]} 28... Rxc4 {[%clk 0:00:51.6]} 29. Kd3
{[%clk 0:01:09.4]} 29... Rc7 {[%clk 0:00:52.1]} 30. Rb6 {[%clk 0:01:07]} 30...
Kh7 {[%clk 0:00:51.3]} 31. Ne3 {[%clk 0:01:04.1]} 31... Kg6 {[%clk 0:00:51]} 32.
Ng4 {[%clk 0:01:03.7]} 32... h5 {[%clk 0:00:46.8]} 33. Ne5+ {[%clk 0:00:59.6]}
33... Kf5 {[%clk 0:00:46.8]} 34. Nc4 {[%clk 0:00:58.5]} 34... Rd7+ {[%clk
0:00:37.8]} 35. Ke3 {[%clk 0:00:46.3]} 35... Nxf6 {[%clk 0:00:26.3]} 36. Ncd6+
{[%clk 0:00:38]} 36... Kg6 {[%clk 0:00:24]} 37. Nxf6 {[%clk 0:00:38.1]} 37...
Kxf6 {[%clk 0:00:24.9]} 38. Nxb7 {[%clk 0:00:38]} 38... Rc7 {[%clk 0:00:21.8]}
39. a4 {[%clk 0:00:37.2]} 39... Rc3+ {[%clk 0:00:20]} 40. Kd4 {[%clk 0:00:36.1]}
40... Rc2 {[%clk 0:00:20.3]} 41. Rxa6 {[%clk 0:00:35.1]} 41... Rxh2 {[%clk
0:00:21]} 42. Ra8 {[%clk 0:00:32.8]} 42... h4 {[%clk 0:00:19.7]} 43. gxh4 {[%clk
0:00:33]} 43... Rxh4+ {[%clk 0:00:20.6]} 44. Ke3 {[%clk 0:00:30.5]} 44... Rh3+
{[%clk 0:00:20.9]} 45. Kf2 {[%clk 0:00:29.9]} 45... Ra3 {[%clk 0:00:21.4]} 46.
a5 {[%clk 0:00:29.6]} 46... Ke5 {[%clk 0:00:21.6]} 47. a6 {[%clk 0:00:29.3]}
47... Kd5 {[%clk 0:00:13.4]} 48. Rd8+ {[%clk 0:00:09.6]} 48... Kc6 {[%clk
0:00:13.5]} 49. Rd6+ {[%clk 0:00:07.1]} 49... Kc7 {[%clk 0:00:13.8]} 50. Kg2
{[%clk 0:00:02.8]} 50... g4 {[%clk 0:00:14.3]} 51. Rd2 {[%clk 0:00:02.4]} 51...
Rxa6 {[%clk 0:00:10.6]} 52. Nc5 {[%clk 0:00:03]} 52... Ra5 {[%clk 0:00:09.9]}
53. Ne4 {[%clk 0:00:03.4]} 53... f5 {[%clk 0:00:09]} 54. Ng5 {[%clk 0:00:02.9]}
54... e5 {[%clk 0:00:06.6]} 55. Kg3 {[%clk 0:00:03.4]} 55... Ra3+ {[%clk
0:00:06.6]} 56. Kh4 {[%clk 0:00:03.8]} 56... Kc6 {[%clk 0:00:06.9]} 57. Ne6
{[%clk 0:00:03.4]} 57... Rf3 {[%clk 0:00:05.5]} 58. Kg5 {[%clk 0:00:03.2]} 58...
g3 {[%clk 0:00:06]} 59. Ng7 {[%clk 0:00:01.9]} 59... f4 {[%clk 0:00:05.8]} 60.
Nf5 {[%clk 0:00:01.6]} 60... Rf2 {[%clk 0:00:05.9]} 61. Rd1 {[%clk 0:00:01.6]}
61... g2 {[%clk 0:00:05.8]} 0-1

[Event "Early-Titled-Tuesday-Blitz-November-28-2023"]
[Site "Chess.com"]
[Date "2023.11.28"]
[Round "4"]
[White "GP9isback23"]
[Black "DDTerziev04"]
[Result "1-0"]
[WhiteElo "2615"]
[BlackElo "2138"]
[TimeControl "180+1"]
[EndTime "8:40:20 PST"]
[Termination "GP9isback23 won by checkmate"]

1. d4 {[%clk 0:02:58.7]} 1... d5 {[%clk 0:02:56.6]} 2. Nf3 {[%clk 0:02:59]} 2...
Nf6 {[%clk 0:02:56.1]} 3. c4 {[%clk 0:02:59.1]} 3... dxc4 {[%clk 0:02:56.2]} 4.
Nc3 {[%clk 0:02:59.8]} 4... e6 {[%clk 0:02:54.7]} 5. e3 {[%clk 0:03:00.1]} 5...
a6 {[%clk 0:02:54]} 6. a4 {[%clk 0:03:00]} 6... Be7 {[%clk 0:02:53.9]} 7. Bxc4
{[%clk 0:03:00.7]} 7... c5 {[%clk 0:02:50.8]} 8. O-O {[%clk 0:03:00.7]} 8... Nc6
{[%clk 0:02:50.2]} 9. Qe2 {[%clk 0:02:50.5]} 9... cxd4 {[%clk 0:02:49.5]} 10.
exd4 {[%clk 0:02:51.4]} 10... O-O {[%clk 0:02:48]} 11. Rd1 {[%clk 0:02:50.3]}
11... Nb4 {[%clk 0:02:47.7]} 12. Ne5 {[%clk 0:02:47.3]} 12... Nbd5 {[%clk
0:02:43.9]} 13. Bg5 {[%clk 0:02:45.8]} 13... Nxc3 {[%clk 0:02:32.7]} 14. bxc3
{[%clk 0:02:46.7]} 14... Nd5 {[%clk 0:02:32.1]} 15. Bxd5 {[%clk 0:02:38.1]}
15... exd5 {[%clk 0:02:28.1]} 16. Bxe7 {[%clk 0:01:45.2]} 16... Qxe7 {[%clk
0:02:26.4]} 17. Qf3 {[%clk 0:01:45.8]} 17... Be6 {[%clk 0:02:24.7]} 18. Rdb1
{[%clk 0:01:40.1]} 18... Rac8 {[%clk 0:02:23.3]} 19. a5 {[%clk 0:01:40.2]} 19...
Rc7 {[%clk 0:02:23.1]} 20. Rb3 {[%clk 0:01:38.8]} 20... Rfc8 {[%clk 0:02:22.6]}
21. Rab1 {[%clk 0:01:39.4]} 21... Qf6 {[%clk 0:02:14.2]} 22. Qe3 {[%clk
0:01:35.5]} 22... h6 {[%clk 0:02:11]} 23. h3 {[%clk 0:01:33.3]} 23... Qf5 {[%clk
0:01:59.9]} 24. R1b2 {[%clk 0:01:26.3]} 24... Qe4 {[%clk 0:01:58.9]} 25. Qd2
{[%clk 0:01:20.4]} 25... Qf5 {[%clk 0:01:47.8]} 26. Nd3 {[%clk 0:01:11]} 26...
Qg6 {[%clk 0:01:40.7]} 27. Kh2 {[%clk 0:01:03.8]} 27... Bf5 {[%clk 0:01:37]} 28.
Nc5 {[%clk 0:00:57.8]} 28... Qd6+ {[%clk 0:01:35.3]} 29. Kg1 {[%clk 0:00:49]}
29... Rxc5 {[%clk 0:01:33.4]} 30. dxc5 {[%clk 0:00:48.8]} 30... Qxc5 {[%clk
0:01:33.6]} 31. Rxb7 {[%clk 0:00:44.4]} 31... Qxa5 {[%clk 0:01:32.8]} 32. Rb8
{[%clk 0:00:26.7]} 32... Rxb8 {[%clk 0:01:32.5]} 33. Rxb8+ {[%clk 0:00:26.8]}
33... Kh7 {[%clk 0:01:32.3]} 34. Rb7 {[%clk 0:00:23.1]} 34... Bg6 {[%clk
0:01:31]} 35. Qd4 {[%clk 0:00:21.7]} 35... Qa1+ {[%clk 0:01:29]} 36. Kh2 {[%clk
0:00:21.4]} 36... Qa2 {[%clk 0:01:27]} 37. Ra7 {[%clk 0:00:20.5]} 37... a5
{[%clk 0:01:26.3]} 38. Qc5 {[%clk 0:00:19.3]} 38... Qd2 {[%clk 0:01:23.6]} 39.
Rxa5 {[%clk 0:00:16.6]} 39... Qf4+ {[%clk 0:01:23.6]} 40. g3 {[%clk 0:00:16.2]}
40... Qf3 {[%clk 0:01:23.9]} 41. Qe3 {[%clk 0:00:15.8]} 41... Qd1 {[%clk
0:01:22.4]} 42. Ra2 {[%clk 0:00:14.1]} 42... Be4 {[%clk 0:01:21.5]} 43. f3
{[%clk 0:00:13.7]} 43... Bxf3 {[%clk 0:01:21.1]} 44. Qg1 {[%clk 0:00:14.2]}
44... Qb3 {[%clk 0:01:19.7]} 45. Rf2 {[%clk 0:00:14.4]} 45... Qxc3 {[%clk
0:01:16.9]} 46. Qf1 {[%clk 0:00:12.3]} 46... Be4 {[%clk 0:01:16.9]} 47. Rxf7
{[%clk 0:00:11.7]} 47... d4 {[%clk 0:01:16.9]} 48. Qf6 {[%clk 0:00:08.2]} 48...
Qc2+ {[%clk 0:01:16.3]} 49. Qf2 {[%clk 0:00:08.9]} 49... d3 {[%clk 0:01:14.4]}
50. Kg1 {[%clk 0:00:05.3]} 50... Qd1+ {[%clk 0:01:14]} 51. Qf1 {[%clk
0:00:05.4]} 51... Qc2 {[%clk 0:01:11.5]} 52. Rf2 {[%clk 0:00:05.8]} 52... Qc5
{[%clk 0:01:11]} 53. Kh2 {[%clk 0:00:05.7]} 53... Qd4 {[%clk 0:01:10]} 54. Qe1
{[%clk 0:00:06]} 54... Bg6 {[%clk 0:01:07.7]} 55. Rd2 {[%clk 0:00:06.5]} 55...
Be4 {[%clk 0:01:07.2]} 56. Qf2 {[%clk 0:00:06.8]} 56... Qxf2+ {[%clk 0:01:05.4]}
57. Rxf2 {[%clk 0:00:06.8]} 57... g5 {[%clk 0:01:04.8]} 58. g4 {[%clk 0:00:07]}
58... Bg6 {[%clk 0:01:03.9]} 59. Kg3 {[%clk 0:00:06.8]} 59... Kg7 {[%clk
0:01:03.7]} 60. Kf3 {[%clk 0:00:07.1]} 60... Bh7 {[%clk 0:01:03.5]} 61. Ke3
{[%clk 0:00:07.7]} 61... Bg6 {[%clk 0:01:04]} 62. Ra2 {[%clk 0:00:07.6]} 62...
Bh7 {[%clk 0:01:03]} 63. Ra7+ {[%clk 0:00:08.3]} 63... Kg8 {[%clk 0:01:02.8]}
64. Ra6 {[%clk 0:00:09.2]} 64... Kg7 {[%clk 0:01:02.6]} 65. Rd6 {[%clk
0:00:09.6]} 65... Bg6 {[%clk 0:01:02.2]} 66. Kd2 {[%clk 0:00:08.9]} 66... Kf7
{[%clk 0:01:00.8]} 67. Kc3 {[%clk 0:00:08.1]} 67... Kg7 {[%clk 0:01:00.8]} 68.
Kd4 {[%clk 0:00:07.5]} 68... h5 {[%clk 0:00:54]} 69. Ke5 {[%clk 0:00:05.9]}
69... hxg4 {[%clk 0:00:52.3]} 70. hxg4 {[%clk 0:00:06.8]} 70... Kh7 {[%clk
0:00:41.1]} 71. Kf6 {[%clk 0:00:05.8]} 71... Kh6 {[%clk 0:00:39.1]} 72. Rd8
{[%clk 0:00:05.7]} 72... Bh7 {[%clk 0:00:38.4]} 73. Rd5 {[%clk 0:00:04.2]} 73...
Bg6 {[%clk 0:00:37.2]} 74. Rxg5 {[%clk 0:00:04.6]} 74... Be4 {[%clk 0:00:28.7]}
75. Rh5# {[%clk 0:00:04]} 1-0

[Event "Early-Titled-Tuesday-Blitz-November-28-2023"]
[Site "Chess.com"]
[Date "2023.11.28"]
[Round "4"]
[White "cthulhuuu"]
[Black "KNVB"]
[Result "0-1"]
[WhiteElo "2467"]
[BlackElo "2736"]
[TimeControl "180+1"]
[EndTime "8:40:20 PST"]
[Termination "KNVB won by checkmate"]

1. e4 {[%clk 0:03:00.1]} 1... b6 {[%clk 0:02:46.7]} 2. g3 {[%clk 0:02:57.2]}
2... Bb7 {[%clk 0:02:45.7]} 3. Bg2 {[%clk 0:02:57.7]} 3... e6 {[%clk 0:02:45.6]}
4. d3 {[%clk 0:02:57.9]} 4... c5 {[%clk 0:02:45.9]} 5. Nf3 {[%clk 0:02:58]} 5...
d5 {[%clk 0:02:46.5]} 6. Nbd2 {[%clk 0:02:58.1]} 6... dxe4 {[%clk 0:02:44.8]} 7.
dxe4 {[%clk 0:02:59]} 7... Nf6 {[%clk 0:02:44.8]} 8. O-O {[%clk 0:02:59]} 8...
Be7 {[%clk 0:02:21.5]} 9. e5 {[%clk 0:02:57.9]} 9... Nd5 {[%clk 0:01:50]} 10. a3
{[%clk 0:02:57.2]} 10... b5 {[%clk 0:01:43.4]} 11. c4 {[%clk 0:02:43.7]} 11...
bxc4 {[%clk 0:01:44.3]} 12. Nxc4 {[%clk 0:02:44.1]} 12... Nd7 {[%clk 0:01:22.3]}
13. Bg5 {[%clk 0:02:30.1]} 13... O-O {[%clk 0:01:22.5]} 14. Bxe7 {[%clk
0:02:29.2]} 14... Qxe7 {[%clk 0:01:23.4]} 15. Re1 {[%clk 0:02:23.5]} 15... Rab8
{[%clk 0:01:20]} 16. Qd2 {[%clk 0:02:16.4]} 16... h6 {[%clk 0:01:10.5]} 17. Rac1
{[%clk 0:02:11.8]} 17... Ba8 {[%clk 0:01:05.4]} 18. Qa5 {[%clk 0:02:08.5]} 18...
N7b6 {[%clk 0:00:51.7]} 19. Nd6 {[%clk 0:02:04.9]} 19... c4 {[%clk 0:00:50]} 20.
Re2 {[%clk 0:01:52]} 20... Rfd8 {[%clk 0:00:21.9]} 21. h4 {[%clk 0:01:48.1]}
21... Qc7 {[%clk 0:00:19.5]} 22. Nxc4 {[%clk 0:01:38]} 22... Nxc4 {[%clk
0:00:10.4]} 23. Qxc7 {[%clk 0:01:38.3]} 23... Nxc7 {[%clk 0:00:10.7]} 24. Rxc4
{[%clk 0:01:38.7]} 24... Rd1+ {[%clk 0:00:10.3]} 25. Kh2 {[%clk 0:01:38.7]}
25... Nd5 {[%clk 0:00:04.4]} 26. Rec2 {[%clk 0:01:38.9]} 26... Nb6 {[%clk
0:00:03.7]} 27. Rc7 {[%clk 0:01:37.5]} 27... Bd5 {[%clk 0:00:01.7]} 28. Rxa7
{[%clk 0:01:31.1]} 28... Nc4 {[%clk 0:00:02]} 29. b4 {[%clk 0:01:11.6]} 29...
Ra1 {[%clk 0:00:01.4]} 30. Nd4 {[%clk 0:00:53.7]} 30... Bxg2 {[%clk 0:00:02.3]}
31. Kxg2 {[%clk 0:00:53.8]} 31... Rxa3 {[%clk 0:00:03.2]} 32. Rxa3 {[%clk
0:00:49.2]} 32... Nxa3 {[%clk 0:00:04.1]} 33. Rb2 {[%clk 0:00:36.4]} 33... Nc4
{[%clk 0:00:04]} 34. Rb1 {[%clk 0:00:31.7]} 34... Nxe5 {[%clk 0:00:03.4]} 35. b5
{[%clk 0:00:31.1]} 35... Rb6 {[%clk 0:00:02.4]} 36. Rc1 {[%clk 0:00:26.9]} 36...
Kf8 {[%clk 0:00:02.6]} 37. f4 {[%clk 0:00:23]} 37... Nd7 {[%clk 0:00:02.8]} 38.
Rc7 {[%clk 0:00:15]} 38... Ke7 {[%clk 0:00:01.6]} 39. Kf3 {[%clk 0:00:12.8]}
39... Kd6 {[%clk 0:00:01.9]} 40. Ra7 {[%clk 0:00:11.8]} 40... f6 {[%clk
0:00:01.8]} 41. Ra8 {[%clk 0:00:08.6]} 41... h5 {[%clk 0:00:01.8]} 42. Rg8
{[%clk 0:00:08.3]} 42... Rb7 {[%clk 0:00:01.5]} 43. Ke3 {[%clk 0:00:04.6]} 43...
Rc7 {[%clk 0:00:01.6]} 44. Rxg7 {[%clk 0:00:04]} 44... Rc3+ {[%clk 0:00:01.2]}
45. Kd2 {[%clk 0:00:04.4]} 45... Ra3 {[%clk 0:00:01.1]} 46. Rh7 {[%clk
0:00:01.8]} 46... f5 {[%clk 0:00:01.1]} 47. Rxh5 {[%clk 0:00:01.9]} 47... Rxg3
{[%clk 0:00:01.2]} 48. Nc2 {[%clk 0:00:01.7]} 48... Nb6 {[%clk 0:00:01.1]} 49.
Ne3 {[%clk 0:00:02.6]} 49... Rh3 {[%clk 0:00:01.4]} 50. Rh6 {[%clk 0:00:02.8]}
50... Kc5 {[%clk 0:00:01.5]} 51. Rxe6 {[%clk 0:00:02.8]} 51... Rxh4 {[%clk
0:00:02]} 52. Re5+ {[%clk 0:00:03.3]} 52... Kd4 {[%clk 0:00:02.2]} 53. Rxf5
{[%clk 0:00:04]} 53... Rh2+ {[%clk 0:00:02.7]} 54. Kd1 {[%clk 0:00:03.7]} 54...
Kxe3 {[%clk 0:00:02.7]} 55. Re5+ {[%clk 0:00:04.3]} 55... Kd3 {[%clk 0:00:02.9]}
56. f5 {[%clk 0:00:03.7]} 56... Nc4 {[%clk 0:00:02.5]} 57. Re1 {[%clk 0:00:04]}
57... Nb2+ {[%clk 0:00:01.8]} 58. Kc1 {[%clk 0:00:04]} 58... Kc3 {[%clk
0:00:02.6]} 59. Re3+ {[%clk 0:00:04.1]} 59... Nd3+ {[%clk 0:00:03]} 60. Kd1
{[%clk 0:00:03.6]} 60... Rd2# {[%clk 0:00:02.8]} 0-1